[Event "17th Memorial Lezcano Montalvo 2025"]
[Site "Gran Canaria"]
[Date "2025.04.15"]
[Round "4.15"]
[White "Perez Rosales, Pedro"]
[Black "Garcia Padron, Jose"]
[Result "0-1"]
[Annotator "RC"]
[ECO "A05"]
[WhiteElo "1942"]
[BlackElo "2355"]
[PlyCount "37"]
[EventDate "2025.04.13"]
[EventType "swiss"]
[EventCountry "ESP"]
[SourceTitle "playchess.com"]
[Source "ChessBase"]
[SourceQuality "1"]
[TimeControl "5400+30"]

1. Nf3 {[%emt 0:04:45]} Nf6 {[%emt 0:00:08]} 2. g3 {[%emt 0:00:07]} b5 {[%emt 0:00:06]} 3. Bg2 {[%emt 0:00:04]} Bb7 {[%emt 0:00:13]} 4. O-O {[%emt 0:00:08]} e6 {[%emt 0:00:11]} 5. b3 {[%emt 0:05:57]} Be7 {[%emt 0:03:01]} 6. Bb2 {[%emt 0:00:09]} O-O {[%emt 0:00:13]} 7. c4 {[%emt 0:01:42]} a6 {[%emt 0:00:06]} 8. Qc2 {[%emt 0:01:29]} Re8 {[%emt 0:05:45]} 9. Re1 {[%emt 0:03:14]} Nc6 {[%emt 0:02:18]} 10. a3 {[%emt 1:17:55]} Rb8 {[%emt 0:03:16]} 11. e4 {[%emt 0:00:00]} d6 {[%emt 0:00:06]} 12. d4 {[%emt 0:00:00]} Bf8 {[%emt 0:03:50]} 13. Nbd2 {[%emt 0:00:00]} Nd7 {[%emt 0:00:51]} 14. Rad1 {[%emt 0:00:00]} e5 {[%emt 0:00:25]} 15. dxe5 {[%emt 0:00:00]} dxe5 {[%emt 0:00:14]} 16. Nf1 {[%emt 0:00:00]} bxc4 {[%emt 0:02:50]} 17. Qxc4 {[%emt 0:00:00]} Bd6 {[%emt 0:00:05]} 18. Ne3 {[%emt 0:04:00]} Nb6 19. Ra1 {[%emt 0:00:30]} 0-1

[Event "17th Memorial Lezcano Montalvo 2025"]
[Site "Gran Canaria"]
[Date "2025.04.15"]
[Round "4.16"]
[White "Rivero Tacoronte, Gabriel"]
[Black "Torres Rebolledo, Alvaro"]
[Result "0-1"]
[Annotator "RC"]
[ECO "B90"]
[WhiteElo "1963"]
[BlackElo "2311"]
[PlyCount "52"]
[EventDate "2025.04.13"]
[EventType "swiss"]
[EventCountry "ESP"]
[SourceTitle "playchess.com"]
[Source "ChessBase"]
[SourceQuality "1"]
[TimeControl "5400+30"]

1. e4 {[%emt 0:00:03]} c5 {[%emt 0:00:06]} 2. Nf3 {[%emt 0:00:05]} d6 {[%emt 0:00:06]} 3. d4 {[%emt 0:00:04]} cxd4 {[%emt 0:00:07]} 4. Nxd4 {[%emt 0:00:03]} Nf6 {[%emt 0:00:10]} 5. Nc3 {[%emt 0:00:03]} a6 {[%emt 0:00:05]} 6. f3 {[%emt 0:01:36]} e5 {[%emt 0:00:11]} 7. Nb3 {[%emt 0:00:05]} Be6 {[%emt 0:00:12]} 8. Be3 {[%emt 0:00:06]} Be7 {[%emt 0:00:09]} 9. Qd2 {[%emt 0:00:40]} h5 {[%emt 0:00:14]} 10. O-O-O {[%emt 0:00:40]} Nbd7 {[%emt 0:00:26]} 11. Nd5 {[%emt 0:30:25]} Nxd5 {[%emt 0:02:22]} 12. exd5 {[%emt 0:00:06]} Bf5 {[%emt 0:00:08]} 13. Bd3 {[%emt 0:04:32]} Bxd3 {[%emt 0:00:18]} 14. Qxd3 {[%emt 0:00:08]} Bg5 {[%emt 0:00:24]} 15. Rhe1 {[%emt 0:05:08]} O-O {[%emt 0:02:11]} 16. Kb1 {[%emt 0:02:52]} Rc8 {[%emt 0:02:13]} 17. Rc1 {[%emt 0:11:21]} Bxe3 {[%emt 0:09:39]} 18. Rxe3 {[%emt 0:03:27]} Qg5 {[%emt 0:04:19]} 19. Re2 {[%emt 0:02:14]} f5 {[%emt 0:02:32]} 20. c4 {[%emt 0:00:21]} Rc7 {[%emt 0:05:55]} 21. c5 {[%emt 0:06:57]} dxc5 {[%emt 0:13:03]} 22. d6 {[%emt 0:00:07]} Rc6 {[%emt 0:00:37]} 23. Qd5+ {[%emt 0:00:33]} Kh7 {[%emt 0:00:39]} 24. Nxc5 {[%emt 0:00:32]} Qxc1+ {[%emt 0:01:19]} 25. Kxc1 {[%emt 0:00:03]} Rxc5+ {[%emt 0:00:05]} 26. Qxc5 {[%emt 0:00:06]} Nxc5 {[%emt 0:00:04]} 0-1

[Event "17th Memorial Lezcano Montalvo 2025"]
[Site "Gran Canaria"]
[Date "2025.04.15"]
[Round "4.17"]
[White "de Leon Navarro, Claudio"]
[Black "Meneses Gonzalez, Kevin Moises"]
[Result "0-1"]
[Annotator "RC"]
[ECO "E69"]
[WhiteElo "1918"]
[BlackElo "2307"]
[PlyCount "84"]
[EventDate "2025.04.13"]
[EventType "swiss"]
[EventCountry "ESP"]
[SourceTitle "playchess.com"]
[Source "ChessBase"]
[SourceQuality "1"]
[TimeControl "5400+30"]

1. d4 {[%emt 0:02:51]} Nf6 {[%emt 0:00:28]} 2. c4 {[%emt 0:00:18]} d6 {[%emt 0:00:55]} 3. Nf3 {[%emt 0:00:21]} g6 {[%emt 0:00:05]} 4. g3 {[%emt 0:00:43]} Bg7 {[%emt 0:00:04]} 5. Bg2 {[%emt 0:00:11]} O-O {[%emt 0:00:06]} 6. Nc3 {[%emt 0:00:09]} Nbd7 {[%emt 0:00:09]} 7. O-O {[%emt 0:00:18]} e5 {[%emt 0:00:02]} 8. e4 {[%emt 0:00:15]} c6 {[%emt 0:00:19]} 9. h3 {[%emt 0:00:44]} Qb6 {[%emt 0:00:57]} 10. dxe5 {[%emt 0:15:37]} dxe5 {[%emt 0:00:17]} 11. Qc2 {[%emt 0:00:26]} Re8 {[%emt 0:08:27]} 12. Be3 {[%emt 0:02:34]} Qc7 {[%emt 0:00:16]} 13. Rad1 {[%emt 1:12:33]} Nf8 {[%emt 0:02:48]} 14. Rd2 {[%emt 0:00:00]} Ne6 {[%emt 0:02:47]} 15. Rfd1 {[%emt 0:00:00]} h6 {[%emt 0:00:58]} 16. b3 {[%emt 0:00:00]} Nh7 {[%emt 0:01:03]} 17. Nh4 {[%emt 0:00:00]} Qe7 {[%emt 0:07:20]} 18. Kh2 {[%emt 0:00:00]} Nf4 {[%emt 0:02:44]} 19. Bf1 {[%emt 0:00:00]} Ne6 {[%emt 0:00:08]} 20. Bg2 {[%emt 0:00:00]} Nhf8 {[%emt 0:00:09]} 21. Nf3 {[%emt 0:00:00]} Ng5 {[%emt 0:00:27]} 22. Qd3 {[%emt 0:00:00]} Nxf3+ {[%emt 0:02:03]} 23. Bxf3 {[%emt 0:00:00]} Ne6 {[%emt 0:00:03]} 24. Bg4 {[%emt 0:00:00]} h5 {[%emt 0:00:47]} 25. Bf3 {[%emt 0:00:00]} h4 {[%emt 0:00:43]} 26. Bg4 {[%emt 0:00:00]} Nd4 {[%emt 0:00:47]} 27. Bxc8 {[%emt 0:00:00]} Raxc8 {[%emt 0:01:28]} 28. Kg2 {[%emt 0:00:00]} Rcd8 {[%emt 0:09:06]} 29. Qf1 {[%emt 0:00:00]} Qf6 {[%emt 0:09:59]} 30. f3 {[%emt 0:00:00]} hxg3 {[%emt 0:00:10]} 31. Ne2 {[%emt 0:00:00]} Ne6 {[%emt 0:06:09]} 32. Rxd8 {[%emt 0:03:41]} Rxd8 {[%emt 0:01:01]} 33. Kxg3 {[%emt 0:01:16]} Nd4 {[%emt 0:03:34]} 34. Rd2 {[%emt 0:01:41]} Bf8 {[%emt 0:01:39]} 35. f4 {[%emt 0:01:05]} exf4+ {[%emt 0:01:05]} 36. Nxf4 {[%emt 0:01:48]} g5 {[%emt 0:03:11]} 37. Bxd4 {[%emt 0:00:35]} gxf4+ {[%emt 0:01:12]} 38. Kf3 {[%emt 0:00:05]} Rxd4 {[%emt 0:00:10]} 39. Qg1+ {[%emt 0:02:07]} Bg7 {[%emt 0:00:03]} 40. Rxd4 {[%emt 0:00:33]} Qxd4 {[%emt 0:00:03]} 41. Qg4 {[%emt 0:00:33]} Qe3+ {[%emt 0:00:11]} 42. Kg2 {[%emt 0:00:08]} Qxe4+ {[%emt 0:00:03]} 0-1

[Event "17th Memorial Lezcano Montalvo 2025"]
[Site "Gran Canaria"]
[Date "2025.04.15"]
[Round "4.18"]
[White "Hernandez Guerra, Luna Yue"]
[Black "Castellanos Gomez, Alejandro"]
[Result "0-1"]
[Annotator "RC"]
[ECO "B01"]
[WhiteElo "1897"]
[BlackElo "2267"]
[PlyCount "118"]
[EventDate "2025.04.13"]
[EventType "swiss"]
[EventCountry "ESP"]
[SourceTitle "playchess.com"]
[Source "ChessBase"]
[SourceQuality "1"]
[TimeControl "5400+30"]

1. e4 {[%emt 0:00:03]} d5 {[%emt 0:00:05]} 2. exd5 {[%emt 0:00:07]} Nf6 {[%emt 0:00:05]} 3. d4 {[%emt 0:00:12]} Bg4 {[%emt 0:00:13]} 4. Nf3 {[%emt 0:00:26]} Qxd5 {[%emt 0:00:07]} 5. Be2 {[%emt 0:00:09]} Nc6 {[%emt 0:00:40]} 6. c4 {[%emt 1:32:33]} Qh5 {[%emt 0:05:42]} 7. Be3 {[%emt 0:00:00]} O-O-O {[%emt 0:01:07]} 8. Nbd2 {[%emt 0:00:00]} e5 {[%emt 0:03:03]} 9. d5 {[%emt 0:00:00]} Nd4 {[%emt 0:00:26]} 10. Nxd4 {[%emt 0:00:00]} exd4 {[%emt 0:00:21]} 11. Bxg4+ {[%emt 0:00:00]} Nxg4 {[%emt 0:00:53]} 12. Bxd4 {[%emt 0:00:00]} Re8+ {[%emt 0:01:18]} 13. Kf1 {[%emt 0:00:00]} Nxh2+ {[%emt 0:05:41]} 14. Kg1 {[%emt 0:00:00]} Qxd1+ {[%emt 0:00:08]} 15. Rxd1 {[%emt 0:00:00]} Ng4 {[%emt 0:00:06]} 16. f3 {[%emt 0:00:00]} Nf6 {[%emt 0:03:34]} 17. a3 {[%emt 0:00:00]} h5 {[%emt 0:05:23]} 18. b4 {[%emt 0:00:00]} Bd6 {[%emt 0:06:33]} 19. Bxf6 {[%emt 0:00:00]} gxf6 {[%emt 0:00:18]} 20. Ne4 {[%emt 0:00:00]} Be5 {[%emt 0:01:15]} 21. Kf2 {[%emt 0:00:00]} Reg8 {[%emt 0:14:22]} 22. d6 {[%emt 0:00:00]} cxd6 {[%emt 0:05:08]} 23. Nxd6+ {[%emt 0:00:00]} Kc7 {[%emt 0:00:53]} 24. Nb5+ {[%emt 0:00:00]} Kb8 {[%emt 0:00:31]} 25. Rd7 {[%emt 0:00:00]} Bg3+ {[%emt 0:16:41]} 26. Ke3 {[%emt 0:00:00]} h4 {[%emt 0:03:54]} 27. Rhd1 {[%emt 0:00:00]} Re8+ {[%emt 0:08:08]} 28. Kd3 {[%emt 0:00:00]} Bf4 {[%emt 0:03:47]} 29. Kc3 {[%emt 0:00:00]} a6 {[%emt 0:02:01]} 30. Nd6 {[%emt 0:00:00]} Re3+ {[%emt 0:00:16]} 31. Rd3 {[%emt 0:00:00]} Rxd3+ {[%emt 0:05:50]} 32. Kxd3 {[%emt 0:00:00]} Rg8 {[%emt 0:00:23]} 33. Rxb7+ {[%emt 0:01:46]} Ka8 {[%emt 0:00:01]} 34. Rd7 {[%emt 0:00:08]} Rxg2 {[%emt 0:01:10]} 35. Ke4 {[%emt 0:02:33]} Bg3 {[%emt 0:02:54]} 36. Nf5 {[%emt 0:01:21]} Re2+ {[%emt 0:01:26]} 37. Kd3 {[%emt 0:00:08]} Re5 {[%emt 0:00:14]} 38. Rd8+ {[%emt 0:01:30]} Kb7 {[%emt 0:01:06]} 39. Ne3 {[%emt 0:02:47]} Rh5 {[%emt 0:01:01]} 40. Rd7+ {[%emt 0:01:30]} Kb8 {[%emt 0:01:57]} 41. Rxf7 {[%emt 0:00:44]} Be5 {[%emt 0:01:22]} 42. Ng4 {[%emt 0:01:36]} h3 {[%emt 0:00:10]} 43. Nf2 {[%emt 0:01:56]} h2 {[%emt 0:00:18]} 44. Nh1 {[%emt 0:00:10]} Rg5 {[%emt 0:01:07]} 45. Rh7 {[%emt 0:02:03]} Rg1 {[%emt 0:00:18]} 46. Nf2 {[%emt 0:00:21]} Rf1 {[%emt 0:00:23]} 47. Ke2 {[%emt 0:00:30]} Ra1 {[%emt 0:00:04]} 48. f4 {[%emt 0:00:32]} Bxf4 {[%emt 0:00:33]} 49. Kf3 {[%emt 0:01:05]} Be5 {[%emt 0:00:09]} 50. Kg2 {[%emt 0:00:09]} Ra2 {[%emt 0:00:17]} 51. Kf1 {[%emt 0:00:44]} Bg3 {[%emt 0:00:18]} 52. Ne4 {[%emt 0:00:36]} Ra1+ {[%emt 0:00:21]} 53. Kg2 {[%emt 0:00:20]} Rg1+ {[%emt 0:00:07]} 54. Kf3 {[%emt 0:00:06]} Be5 {[%emt 0:01:21]} 55. Nf2 {[%emt 0:00:19]} f5 {[%emt 0:01:24]} 56. Rh6 {[%emt 0:01:08]} Bg3 {[%emt 0:00:42]} 57. Nh1 {[%emt 0:00:42]} f4 {[%emt 0:00:14]} 58. Rxa6 {[%emt 0:00:41]} Rxh1 {[%emt 0:00:08]} 59. Rh6 {[%emt 0:00:29]} Rf1+ {[%emt 0:00:14]} 0-1

[Event "17th Memorial Lezcano Montalvo 2025"]
[Site "Gran Canaria"]
[Date "2025.04.15"]
[Round "4.19"]
[White "Hernando Rodrigo, Jose Maria"]
[Black "Gonzalez Martinez, Miguel Angel"]
[Result "0-1"]
[Annotator "RC"]
[ECO "A54"]
[WhiteElo "2256"]
[BlackElo "2134"]
[PlyCount "66"]
[EventDate "2025.04.13"]
[EventType "swiss"]
[EventCountry "ESP"]
[SourceTitle "playchess.com"]
[Source "ChessBase"]
[SourceQuality "1"]
[TimeControl "5400+30"]

1. d4 {[%emt 0:00:02]} d6 {[%emt 0:00:10]} 2. Nf3 {[%emt 0:00:18]} Nf6 {[%emt 0:00:18]} 3. c4 {[%emt 0:00:48]} Nbd7 {[%emt 0:00:11]} 4. Nc3 {[%emt 0:00:12]} e5 {[%emt 0:00:07]} 5. Bg5 {[%emt 0:00:29]} c6 {[%emt 0:02:28]} 6. e3 {[%emt 0:00:13]} Be7 {[%emt 0:02:37]} 7. Qc2 {[%emt 0:00:49]} O-O {[%emt 0:02:49]} 8. Bd3 {[%emt 0:02:49]} h6 {[%emt 0:03:04]} 9. Bh4 {[%emt 0:00:13]} Re8 {[%emt 0:01:05]} 10. Bf5 {[%emt 0:04:00]} exd4 {[%emt 0:01:25]} 11. Nxd4 {[%emt 0:00:17]} Ne5 {[%emt 0:01:34]} 12. b3 {[%emt 0:07:29]} d5 {[%emt 0:04:08]} 13. Bg3 {[%emt 0:08:33]} Bb4 {[%emt 0:03:50]} 14. O-O {[%emt 0:05:09]} dxc4 {[%emt 0:13:47]} 15. bxc4 {[%emt 0:04:26]} Nxc4 {[%emt 0:07:34]} 16. Rfd1 {[%emt 0:02:37]} Qa5 {[%emt 0:02:26]} 17. Bxc8 {[%emt 0:00:13]} Raxc8 {[%emt 0:02:31]} 18. Nce2 {[%emt 0:00:45]} Nb6 {[%emt 0:07:17]} 19. Nb3 {[%emt 0:11:42]} Qb5 {[%emt 0:07:45]} 20. Rab1 {[%emt 0:11:24]} Qc4 {[%emt 0:04:18]} 21. Qb2 {[%emt 0:04:26]} Bf8 {[%emt 0:06:03]} 22. Rdc1 {[%emt 0:06:35]} Qa6 {[%emt 0:02:03]} 23. Qc2 {[%emt 0:13:07]} Ne4 {[%emt 0:02:16]} 24. Bf4 {[%emt 0:00:08]} Nd5 {[%emt 0:04:20]} 25. Nbd4 {[%emt 0:05:26]} c5 {[%emt 0:01:10]} 26. Nb5 {[%emt 0:01:41]} Nb4 {[%emt 0:02:47]} 27. Nc7 {[%emt 0:01:11]} Qa5 {[%emt 0:04:43]} 28. Qb2 {[%emt 0:00:05]} Nd3 {[%emt 0:01:39]} 29. Qb5 {[%emt 0:08:35]} Qxb5 {[%emt 0:02:44]} 30. Nxb5 {[%emt 0:00:02]} Nxc1 {[%emt 0:00:40]} 31. Nxc1 {[%emt 0:00:02]} a6 {[%emt 0:01:51]} 32. Na7 {[%emt 0:00:01]} Rcd8 {[%emt 0:00:12]} 33. Nb3 {[%emt 0:00:06]} Nc3 {[%emt 0:00:53]} 0-1

[Event "17th Memorial Lezcano Montalvo 2025"]
[Site "Gran Canaria"]
[Date "2025.04.15"]
[Round "4.20"]
[White "Gonzalez Perdomo, Sergio"]
[Black "Moreno Diepa, Diego"]
[Result "0-1"]
[Annotator "RC"]
[ECO "D05"]
[WhiteElo "1880"]
[BlackElo "2243"]
[PlyCount "82"]
[EventDate "2025.04.13"]
[EventType "swiss"]
[EventCountry "ESP"]
[SourceTitle "playchess.com"]
[Source "ChessBase"]
[SourceQuality "1"]
[TimeControl "5400+30"]

1. d4 {[%emt 0:00:04]} Nf6 {[%emt 0:00:08]} 2. Nf3 {[%emt 0:00:12]} e6 {[%emt 0:00:05]} 3. e3 {[%emt 0:00:56]} d5 {[%emt 0:00:22]} 4. Bd3 {[%emt 0:00:13]} c5 {[%emt 0:00:03]} 5. b3 {[%emt 0:00:18]} Nc6 {[%emt 0:00:43]} 6. Bb2 {[%emt 0:00:24]} cxd4 {[%emt 0:00:04]} 7. exd4 {[%emt 0:00:42]} Be7 {[%emt 0:00:06]} 8. Nbd2 {[%emt 0:00:49]} O-O {[%emt 0:00:19]} 9. a3 {[%emt 0:01:11]} a5 {[%emt 0:01:05]} 10. O-O {[%emt 0:03:57]} Bd7 {[%emt 0:01:30]} 11. c4 {[%emt 0:04:15]} Rc8 {[%emt 0:02:38]} 12. Rc1 {[%emt 0:04:48]} Ne8 {[%emt 0:08:28]} 13. Qe2 {[%emt 0:06:05]} g6 {[%emt 0:03:50]} 14. Rfe1 {[%emt 0:08:05]} Bf6 {[%emt 0:00:08]} 15. Ne5 {[%emt 0:00:31]} Bg7 {[%emt 0:02:13]} 16. Ndf3 {[%emt 0:01:15]} Nd6 {[%emt 0:02:00]} 17. Bb1 {[%emt 0:08:56]} Be8 {[%emt 0:07:11]} 18. h3 {[%emt 0:14:21]} Kh8 {[%emt 0:07:26]} 19. g4 {[%emt 0:07:03]} f5 {[%emt 0:10:15]} 20. Qe3 {[%emt 0:13:30]} Ne4 {[%emt 0:00:46]} 21. Nd2 {[%emt 0:03:58]} Qh4 {[%emt 0:01:22]} 22. Nxe4 {[%emt 0:05:48]} fxe4 {[%emt 0:00:06]} 23. Qg3 {[%emt 0:02:15]} Qe7 {[%emt 0:01:34]} 24. cxd5 {[%emt 0:02:38]} exd5 {[%emt 0:00:05]} 25. Rcd1 {[%emt 0:03:34]} Nxe5 {[%emt 0:01:20]} 26. dxe5 {[%emt 0:00:07]} Rf3 {[%emt 0:00:07]} 27. Qh2 {[%emt 0:01:04]} Bc6 {[%emt 0:00:53]} 28. Re3 {[%emt 0:00:33]} Rcf8 {[%emt 0:00:36]} 29. Rxf3 {[%emt 0:02:25]} Rxf3 {[%emt 0:00:05]} 30. Bc2 {[%emt 0:00:51]} Qc5 {[%emt 0:03:03]} 31. Rd2 {[%emt 0:01:22]} e3 {[%emt 0:02:43]} 32. Re2 {[%emt 0:02:30]} Bb5 {[%emt 0:01:25]} 33. Rxe3 {[%emt 0:00:37]} Qxc2 {[%emt 0:00:06]} 34. Rxf3 {[%emt 0:00:11]} Qb1+ {[%emt 0:00:18]} 35. Kg2 {[%emt 0:01:05]} Bf1+ {[%emt 0:00:05]} 36. Kg3 {[%emt 0:00:09]} Qxb2 {[%emt 0:00:12]} 37. Kh4 {[%emt 0:01:38]} Bxe5 {[%emt 0:01:09]} 38. Qg1 {[%emt 0:00:23]} Qc1 {[%emt 0:05:21]} 39. g5 {[%emt 0:00:25]} h5 {[%emt 0:02:30]} 40. Rf7 {[%emt 0:00:51]} Kg8 {[%emt 0:05:21]} 41. Qh1 {[%emt 0:00:10]} Qd1 {[%emt 0:00:16]} 0-1

[Event "17th Memorial Lezcano Montalvo 2025"]
[Site "Gran Canaria"]
[Date "2025.04.15"]
[Round "4.21"]
[White "Rodriguez Avila, Alvaro"]
[Black "Ramirez Maillo, Juan Adonay"]
[Result "1-0"]
[Annotator "RC"]
[ECO "B55"]
[WhiteElo "2212"]
[BlackElo "1956"]
[PlyCount "93"]
[EventDate "2025.04.13"]
[EventType "swiss"]
[EventCountry "ESP"]
[SourceTitle "playchess.com"]
[Source "ChessBase"]
[SourceQuality "1"]
[TimeControl "5400+30"]

1. e4 {[%emt 0:00:06]} c5 {[%emt 0:00:06]} 2. Nf3 {[%emt 0:00:07]} d6 {[%emt 0:00:15]} 3. d4 {[%emt 0:00:09]} cxd4 {[%emt 0:00:04]} 4. Nxd4 {[%emt 0:00:09]} Nf6 {[%emt 0:00:07]} 5. f3 {[%emt 0:00:05]} e5 {[%emt 0:03:31]} 6. Nb3 {[%emt 0:00:13]} d5 {[%emt 0:01:17]} 7. Bg5 {[%emt 0:00:12]} Be6 {[%emt 0:02:09]} 8. exd5 {[%emt 0:08:44]} Qxd5 {[%emt 0:00:39]} 9. N1d2 {[%emt 0:03:35]} Nc6 {[%emt 0:03:47]} 10. Bxf6 {[%emt 0:06:31]} gxf6 {[%emt 0:01:52]} 11. Ne4 {[%emt 0:00:18]} Bb4+ {[%emt 0:04:52]} 12. c3 {[%emt 0:00:20]} Be7 {[%emt 0:00:16]} 13. Qxd5 {[%emt 0:03:11]} Bxd5 {[%emt 0:01:23]} 14. O-O-O {[%emt 0:00:31]} O-O-O {[%emt 0:05:40]} 15. Bd3 {[%emt 0:13:20]} a5 {[%emt 0:10:24]} 16. Bb5 {[%emt 0:00:20]} Kc7 {[%emt 0:02:48]} 17. Kb1 {[%emt 0:08:31]} b6 {[%emt 0:03:56]} 18. Ng3 {[%emt 0:03:35]} Be6 {[%emt 0:03:30]} 19. Bd3 {[%emt 0:00:42]} h5 {[%emt 0:01:11]} 20. Be4 {[%emt 0:03:28]} a4 {[%emt 0:02:52]} 21. Nc1 {[%emt 0:00:12]} b5 {[%emt 0:03:57]} 22. a3 {[%emt 0:07:47]} Bc5 {[%emt 0:02:29]} 23. Rxd8 {[%emt 0:02:44]} Nxd8 {[%emt 0:01:18]} 24. Nd3 {[%emt 0:00:31]} Ba7 {[%emt 0:01:10]} 25. Nb4 {[%emt 0:00:22]} h4 {[%emt 0:06:41]} 26. Nf5 {[%emt 0:01:04]} Bc5 {[%emt 0:05:07]} 27. Nd5+ {[%emt 0:00:37]} Bxd5 {[%emt 0:01:22]} 28. Bxd5 {[%emt 0:00:07]} Rh5 {[%emt 0:02:11]} 29. Ng7 {[%emt 0:04:34]} Rg5 {[%emt 0:05:04]} 30. Ne8+ {[%emt 0:00:09]} Kb6 {[%emt 0:00:15]} 31. Nxf6 {[%emt 0:00:17]} Be7 {[%emt 0:10:03]} 32. Ng4 {[%emt 0:00:09]} f5 {[%emt 0:01:01]} 33. Ne3 {[%emt 0:04:40]} Bc5 {[%emt 0:00:09]} 34. Re1 {[%emt 0:00:08]} Kc7 {[%emt 0:01:15]} 35. Nc2 {[%emt 0:07:52]} Kd6 {[%emt 0:02:19]} 36. f4 {[%emt 0:02:29]} exf4 {[%emt 0:01:03]} 37. Rd1 {[%emt 0:00:09]} Ke5 {[%emt 0:02:07]} 38. Ne1 {[%emt 0:03:17]} Rg7 {[%emt 0:01:10]} 39. Nf3+ {[%emt 0:02:31]} Kf6 {[%emt 0:00:35]} 40. Nxh4 {[%emt 0:00:42]} Bf2 {[%emt 0:08:38]} 41. Nf3 {[%emt 0:03:09]} Rxg2 {[%emt 0:00:01]} 42. Rd2 {[%emt 0:01:24]} Ke7 {[%emt 0:00:52]} 43. Kc2 {[%emt 0:00:34]} Kf6 {[%emt 0:01:16]} 44. b3 {[%emt 0:02:09]} axb3+ {[%emt 0:01:48]} 45. Kxb3 {[%emt 0:00:07]} Ne6 {[%emt 0:00:00]} 46. Bxe6 {[%emt 0:00:08]} Kxe6 {[%emt 0:00:00]} 47. Kb4 {[%emt 0:12:01]} 1-0

[Event "17th Memorial Lezcano Montalvo 2025"]
[Site "Gran Canaria"]
[Date "2025.04.15"]
[Round "4.22"]
[White "Paquico Rodriguez, Ivan"]
[Black "Blanco Barros, Juan Carlos"]
[Result "1-0"]
[Annotator "RC"]
[ECO "A48"]
[WhiteElo "2202"]
[BlackElo "1941"]
[PlyCount "137"]
[EventDate "2025.04.13"]
[EventType "swiss"]
[EventCountry "ESP"]
[SourceTitle "playchess.com"]
[Source "ChessBase"]
[SourceQuality "1"]
[TimeControl "5400+30"]

1. Nf3 {[%emt 0:00:11]} Nf6 {[%emt 0:00:34]} 2. b3 {[%emt 0:00:05]} g6 {[%emt 0:00:26]} 3. Bb2 {[%emt 0:00:09]} Bg7 {[%emt 0:00:08]} 4. e3 {[%emt 0:00:05]} d6 {[%emt 0:00:14]} 5. d4 {[%emt 0:00:27]} Nbd7 {[%emt 0:00:12]} 6. Be2 {[%emt 0:00:13]} O-O {[%emt 0:00:22]} 7. O-O {[%emt 0:00:23]} Qe8 {[%emt 0:02:43]} 8. c4 {[%emt 0:03:57]} e5 {[%emt 0:00:14]} 9. dxe5 {[%emt 0:04:00]} dxe5 {[%emt 0:00:10]} 10. Nc3 {[%emt 0:09:28]} Qe7 {[%emt 0:01:23]} 11. Nb5 {[%emt 0:05:27]} c6 {[%emt 0:02:22]} 12. Ba3 {[%emt 0:04:56]} Nc5 {[%emt 0:00:38]} 13. Nc3 {[%emt 0:14:18]} Re8 {[%emt 0:00:59]} 14. Na4 {[%emt 0:03:16]} Nfd7 {[%emt 0:02:43]} 15. e4 {[%emt 0:04:32]} Bf8 {[%emt 0:00:26]} 16. Qc2 {[%emt 0:02:18]} Qf6 {[%emt 0:00:40]} 17. Nxc5 {[%emt 0:02:59]} Bxc5 {[%emt 0:00:16]} 18. b4 {[%emt 0:01:24]} Bb6 {[%emt 0:02:13]} 19. c5 {[%emt 0:03:32]} Bc7 {[%emt 0:00:10]} 20. Bc1 {[%emt 0:01:45]} Nf8 {[%emt 0:01:08]} 21. Bg5 {[%emt 0:00:55]} Qg7 {[%emt 0:00:29]} 22. Rfd1 {[%emt 0:00:42]} h6 {[%emt 0:00:42]} 23. Be3 {[%emt 0:00:26]} g5 {[%emt 0:00:14]} 24. Nd2 {[%emt 0:01:15]} Be6 {[%emt 0:08:41]} 25. Bc4 {[%emt 0:01:25]} Rad8 {[%emt 0:00:25]} 26. a4 {[%emt 0:00:14]} Qf6 {[%emt 0:00:50]} 27. b5 {[%emt 0:03:11]} Bxc4 {[%emt 0:01:28]} 28. Nxc4 {[%emt 0:00:18]} Rxd1+ {[%emt 0:00:13]} 29. Rxd1 {[%emt 0:00:17]} Qe7 {[%emt 0:04:42]} 30. Nd6 {[%emt 0:10:58]} Bxd6 {[%emt 0:03:11]} 31. cxd6 {[%emt 0:00:03]} Qd7 {[%emt 0:00:23]} 32. bxc6 {[%emt 0:00:48]} bxc6 {[%emt 0:01:18]} 33. Qc5 {[%emt 0:00:11]} a6 {[%emt 0:02:41]} 34. Qb6 {[%emt 0:02:30]} Ra8 {[%emt 0:00:19]} 35. Qa5 {[%emt 0:01:00]} f6 {[%emt 0:00:50]} 36. Qb6 {[%emt 0:02:32]} Kf7 {[%emt 0:06:57]} 37. a5 {[%emt 0:01:11]} Ke8 {[%emt 0:01:21]} 38. Qb3 {[%emt 0:01:59]} Ne6 {[%emt 0:00:25]} 39. Bb6 {[%emt 0:00:29]} Kf8 {[%emt 0:56:50]} 40. Qh3 {[%emt 0:02:07]} Kg7 {[%emt 0:00:00]} 41. Qg4 {[%emt 0:01:56]} Rc8 {[%emt 0:00:00]} 42. Qe2 {[%emt 0:00:39]} Ra8 {[%emt 0:00:00]} 43. g3 {[%emt 0:00:14]} Kg6 {[%emt 0:00:00]} 44. Qg4 {[%emt 0:02:13]} Rg8 {[%emt 0:00:00]} 45. h4 {[%emt 0:01:45]} Kg7 {[%emt 0:00:00]} 46. h5 {[%emt 0:00:37]} Kf7 {[%emt 0:00:00]} 47. Rd2 {[%emt 0:01:18]} Rc8 {[%emt 0:00:00]} 48. Qe2 {[%emt 0:01:10]} Ra8 {[%emt 0:00:00]} 49. Qc4 {[%emt 0:00:32]} Kf8 {[%emt 0:00:00]} 50. Qd3 {[%emt 0:03:44]} Kg7 {[%emt 0:00:00]} 51. Be3 {[%emt 0:00:55]} Nf8 {[%emt 0:00:00]} 52. Rb2 {[%emt 0:00:30]} Qc8 {[%emt 0:00:00]} 53. Qb1 {[%emt 0:00:47]} Nd7 {[%emt 0:00:00]} 54. Qa2 {[%emt 0:02:16]} Rb8 {[%emt 0:00:00]} 55. Rc2 {[%emt 0:00:07]} Rb5 {[%emt 0:00:00]} 56. Kg2 {[%emt 0:01:15]} c5 {[%emt 0:00:00]} 57. Qe6 {[%emt 0:01:23]} Qb7 {[%emt 0:00:00]} 58. Kh2 {[%emt 0:00:58]} Rb1 {[%emt 0:00:00]} 59. Qe7+ {[%emt 0:00:37]} Kg8 {[%emt 0:00:00]} 60. Qe6+ {[%emt 0:00:23]} Kg7 {[%emt 0:00:00]} 61. Bc1 {[%emt 0:01:02]} Qb5 {[%emt 0:03:03]} 62. Rc3 {[%emt 0:00:25]} Qa4 {[%emt 0:01:37]} 63. Qe7+ {[%emt 0:00:09]} Kg8 {[%emt 0:00:01]} 64. Qe8+ {[%emt 0:00:04]} Kg7 {[%emt 0:01:19]} 65. Qg6+ {[%emt 0:00:04]} Kf8 {[%emt 0:00:21]} 66. Qxh6+ {[%emt 0:00:01]} Kf7 {[%emt 0:00:03]} 67. Qh7+ {[%emt 0:00:35]} Kf8 {[%emt 0:00:20]} 68. Qe7+ {[%emt 0:00:05]} Kg8 {[%emt 0:00:11]} 69. h6 {[%emt 0:00:09]} 1-0